fUSD/lending_fUSD_20251229
["ID","MTS","AMOUNT","RATE_DAILY","PERIOD"]
[400001418,1767007886359,10000.01,0.00012679,2]
[400001419,1767007886385,10000.01,0.00012679,2]
[400001420,1767007886411,10000.01,0.00012679,2]
[400001421,1767007895526,-10000.01,0.00012679,2]
[400001422,1767007895645,-10000.01,0.00012679,2]
[400001423,1767007895798,-10000.01,0.00012679,2]
[400001424,1767007895966,-10000.01,0.00012679,2]
[400001425,1767007896084,-10000.01,0.00012679,2]
[400001426,1767007896207,-10000.01,0.00012679,2]
[400001427,1767007896314,-10000.01,0.00012679,2]
[400001428,1767007896409,-10000.01,0.00012679,2]
[400001429,1767007896526,-10000.01,0.00012679,2]
[400001430,1767007896658,-10000.01,0.00012679,2]
[400001431,1767007901745,-10000.01,0.00012679,2]
[400001432,1767007901891,-10000.01,0.00012679,2]
[400001433,1767007902027,-10000.01,0.00012679,2]
[400001434,1767007902109,-10000.01,0.00012679,2]
[400001435,1767007902219,-10000.01,0.00012679,2]
[400001436,1767007902388,-10000.01,0.00012679,2]
[400001437,1767007902500,-10000.01,0.00012679,2]
[400001438,1767007902626,-10000.01,0.00012679,2]
[400001439,1767007902813,-10000.01,0.00012679,2]
[400001440,1767007902894,-10000.01,0.00012679,2]
[400001441,1767007907713,-10000.01,0.00012679,2]
[400001442,1767007907850,-10000.01,0.00012679,2]
[400001443,1767007907976,-10000.01,0.00012679,2]
[400001444,1767007908083,-10000.01,0.00012679,2]
[400001445,1767007908192,-10000.01,0.00012679,2]
[400001446,1767007908308,-10000.01,0.00012679,2]
[400001447,1767007908445,-10000.01,0.00012679,2]
[400001448,1767007908598,-10000.01,0.00012679,2]
[400001449,1767007908708,-10000.01,0.00012679,2]
[400001450,1767007908909,-10000.01,0.00012679,2]
[400001451,1767007916850,-10000.01,0.00012679,2]
[400001452,1767007916959,-10000.01,0.00012679,2]
[400001453,1767007917089,-10000.01,0.00012679,2]
[400001454,1767007917221,-10000.01,0.00012679,2]
[400001455,1767007917343,-10000.01,0.00012679,2]
[400001456,1767007917460,-10000.01,0.00012679,2]
[400001457,1767007917568,-10000.01,0.00012679,2]
[400001458,1767007917691,-10000.01,0.00012679,2]
[400001459,1767007917815,-10000.01,0.00012679,2]
[400001460,1767007917917,-10000.01,0.00012679,2]
[400001461,1767007935152,-300.0,0.00012678,2]
[400001462,1767007935187,-9400.01,0.00012679,2]
[400001463,1767007944109,-2337.20378785,0.00012679,2]
[400001464,1767007944137,-688.41381524,0.00012679,2]
[400001465,1767007944164,-790.74255944,0.00012679,2]
[400001466,1767007944226,-2367.28967494,0.00012679,2]
[400001467,1767008007726,269.44683295,0.00012579,2]
[400001468,1767008011967,1069.5088833,0.00012579,2]
[400001471,1767008054433,5161.37127841,0.00012579,2]
[400001472,1767008134470,205.98772194,0.00012577,2]
[400001473,1767008139466,1326.21130906,0.00012579,2]
[400001483,1767008328261,273.96197494,0.00012579,2]
[400001484,1767008375200,1693.5219994,0.00012582,2]
[400001485,1767008375222,164.9405006,0.00012582,2]
[400001487,1767008433360,150.0,0.00012404,2]
[400001488,1767008433510,200.0,0.00012431,2]
[400001489,1767008433679,150.0,0.00012404,2]
[400001490,1767008440626,4645.23415056,0.00012579,2]
[400001494,1767008493614,1023.963,0.00012426,2]
[400001501,1767008616485,150.0,0.00012404,2]
[400001502,1767008618438,188.20754594,0.00012404,2]
[400001503,1767008646809,3327.6648029,0.00012579,2]
[400001504,1767008646834,10000.01,0.00012579,2]
[400001505,1767008646857,10000.01,0.00012579,2]
[400001506,1767008646882,10000.01,0.00012579,2]
[400001507,1767008646906,10000.01,0.00012579,2]
[400001508,1767008646928,10000.01,0.00012579,2]
[400001509,1767008647193,10000.01,0.00012579,2]
[400001510,1767008647217,6267.9721971,0.00012579,2]
[400001511,1767008649690,1193.59017819,0.00012579,2]
[400001512,1767008663600,239.71672802,0.00012579,2]
[400001513,1767008755924,2298.73089669,6.985e-05,2]
[400001514,1767008755949,4202.03910331,6.985e-05,2]
[400001515,1767008756132,5797.97089669,7.353e-05,2]
[400001516,1767008756165,702.79910331,7.353e-05,2]
[400001517,1767008756333,6500.77,7.721e-05,2]
[400001518,1767008756514,2796.44089669,8.088e-05,2]
[400001519,1767008756540,3704.32910331,8.088e-05,2]
[400001520,1767008756927,6295.68089669,8.456e-05,2]
[400001521,1767008756952,205.08910331,8.456e-05,2]
[400001522,1767008757135,6500.77,8.824e-05,2]
[400001523,1767008757327,3294.15089669,9.191e-05,2]
[400001524,1767008757351,3206.61910331,9.191e-05,2]
[400001525,1767008757514,6500.77,9.559e-05,2]
[400001526,1767008757722,292.62089669,9.927e-05,2]
[400001527,1767008757746,6208.14910331,9.927e-05,2]
[400001528,1767008757913,3791.86089669,0.00010294,2]
[400001529,1767008757936,2708.90910331,0.00010294,2]
[400001530,1767008758161,6500.77,0.00010662,2]
[400001531,1767008758355,790.33089669,0.00011029,2]
[400001532,1767008758378,5710.43910331,0.00011029,2]
[400001533,1767008758554,4289.57089669,0.00011397,2]
[400001534,1767008758576,2211.19910331,0.00011397,2]
[400001535,1767008758756,6500.77,0.00011765,2]
[400001536,1767008758956,1288.04089669,0.00012132,2]
[400001537,1767008758979,4794.78888023,0.00012132,2]
[400001538,1767008759002,417.94022308,0.00012132,2]
[400001539,1767008760262,-3499.24,0.000125,2]
[400001540,1767008760750,-3001.53,0.000125,2]
[400001541,1767008818965,1825.92669999,0.00030136,120]
[400001543,1767008827069,3996.95,0.00012579,2]
[400001544,1767008827092,183.76073545,0.00012579,2]
[400001546,1767008838263,571.15185951,0.0003,120]
[400001547,1767008915494,167.32949041,0.00012404,2]
[400001548,1767008918552,9648.91977414,0.00012578,2]
[400001549,1767008918578,10000.01,0.00012578,2]
[400001550,1767008918601,10000.01,0.00012578,2]
[400001551,1767008918627,10000.01,0.00012578,2]
[400001552,1767008918651,10000.01,0.00012578,2]
[400001553,1767008918676,10000.01,0.00012578,2]
[400001554,1767008918701,10000.01,0.00012578,2]
[400001555,1767008918725,10000.01,0.00012578,2]
[400001556,1767008918749,10000.01,0.00012578,2]
[400001557,1767008918775,10000.01,0.00012578,2]
[400001558,1767008941284,300.0,0.00012577,2]
[400001559,1767008945419,150.0,0.00012404,2]
[400001560,1767008945587,193.94165854,0.00012431,2]
[400001562,1767008999048,209.75213707,0.00012545,2]
[400001563,1767009001224,300.0,0.00012577,2]
[400001564,1767009001264,300.0,0.00012577,2]
[400001565,1767009001300,300.0,0.00012577,2]
[400001566,1767009003473,253.0,0.00012578,2]
[400001569,1767009031842,-630.75339574,0.00012578,2]
[400001571,1767009031854,-688.72,0.00012578,2]
[400001575,1767009031883,-321.27772,0.00012578,2]
[400001576,1767009031895,-697.33435166,0.00012578,2]
[400001577,1767009031907,-6355.05620418,0.00012578,2]
[400001578,1767009031985,-343.24244796,0.00012578,2]
[400001579,1767009032000,-500.0,0.00012578,2]
[400001580,1767009032013,-890814.60610632,0.00012578,2]
[400001581,1767009032024,-150.0,0.00012671,2]
[400001582,1767009032034,-1200.0,0.00012671,2]
[400001583,1767009032044,-200.0,0.00012672,2]
[400001584,1767009032056,-500.0,0.00012672,2]
[400001585,1767009032066,-151.0,0.00012672,2]
[400001586,1767009032076,-500.0,0.00012672,2]
[400001587,1767009032086,-151.0,0.00012672,2]
[400001588,1767009032096,-500.0,0.00012672,2]
[400001589,1767009032106,-151.0,0.00012672,2]
[400001590,1767009032116,-500.0,0.00012672,2]
[400001591,1767009032126,-151.0,0.00012672,2]
[400001592,1767009032137,-151.0,0.00012672,2]
[400001594,1767009032146,-500.0,0.00012672,2]
[400001596,1767009032156,-151.0,0.00012672,2]
[400001598,1767009032166,-500.0,0.00012672,2]
[400001600,1767009032176,-200.0,0.00012672,2]
[400001602,1767009032189,-151.0,0.00012672,2]
[400001604,1767009032199,-500.0,0.00012672,2]
[400001606,1767009032209,-151.0,0.00012672,2]
[400001608,1767009032218,-500.0,0.00012672,2]
[400001611,1767009032232,-151.0,0.00012672,2]
[400001613,1767009032242,-500.0,0.00012672,2]
[400001614,1767009032252,-151.0,0.00012672,2]
[400001615,1767009032262,-500.0,0.00012672,2]
[400001618,1767009032272,-151.0,0.00012672,2]
[400001620,1767009032282,-500.0,0.00012672,2]
[400001622,1767009032291,-500.0,0.00012672,2]
[400001624,1767009032302,-151.0,0.00012672,2]
[400001626,1767009032312,-500.0,0.00012672,2]
[400001627,1767009032322,-500.0,0.00012672,2]
[400001628,1767009032332,-500.0,0.00012672,2]
[400001629,1767009032342,-500.0,0.00012672,2]
[400001630,1767009032352,-500.0,0.00012672,2]
[400001631,1767009032362,-500.0,0.00012672,2]
[400001632,1767009032372,-500.0,0.00012672,2]
[400001633,1767009032382,-500.0,0.00012672,2]
[400001634,1767009032392,-151.0,0.00012672,2]
[400001635,1767009032402,-500.0,0.00012672,2]
[400001636,1767009032412,-151.0,0.00012672,2]
[400001637,1767009032422,-500.0,0.00012672,2]
[400001638,1767009032440,-151.0,0.00012672,2]
[400001639,1767009032453,-500.0,0.00012672,2]
[400001640,1767009032463,-151.0,0.00012672,2]
[400001641,1767009032474,-500.0,0.00012672,2]
[400001642,1767009032485,-151.0,0.00012672,2]
[400001643,1767009032495,-500.0,0.00012672,2]
[400001644,1767009032505,-151.0,0.00012672,2]
[400001645,1767009032516,-151.0,0.00012672,2]
[400001646,1767009032527,-151.0,0.00012672,2]
[400001647,1767009032537,-151.0,0.00012672,2]
[400001648,1767009032548,-151.0,0.00012672,2]
[400001649,1767009032558,-200.0,0.00012672,2]
[400001650,1767009032568,-151.0,0.00012672,2]
[400001651,1767009032578,-151.0,0.00012672,2]
[400001652,1767009032588,-151.0,0.00012672,2]
[400001653,1767009032599,-151.0,0.00012672,2]
[400001654,1767009032610,-151.0,0.00012672,2]
[400001655,1767009032620,-548.78,0.00012672,2]
[400001656,1767009032630,-1000.0,0.00012677,2]
[400001657,1767009032641,-500.0,0.00012678,2]
[400001658,1767009032652,-500.0,0.00012678,2]
[400001659,1767009032662,-500.0,0.00012678,2]
[400001660,1767009032672,-500.0,0.00012678,2]
[400001661,1767009032683,-500.0,0.00012678,2]
[400001662,1767009033122,-500.0,0.00012678,2]
[400001663,1767009033142,-500.0,0.00012678,2]
[400001664,1767009033153,-500.0,0.00012678,2]
[400001665,1767009033163,-500.0,0.00012678,2]
[400001666,1767009033173,-201.11327439,0.00012678,2]
[400001667,1767009033187,-500.0,0.00012678,2]
[400001668,1767009033195,-500.0,0.00012678,2]
[400001669,1767009033204,-500.0,0.00012678,2]
[400001670,1767009033214,-500.0,0.00012678,2]
[400001671,1767009033226,-500.0,0.00012678,2]
[400001672,1767009033236,-500.0,0.00012678,2]
[400001673,1767009033247,-500.0,0.00012678,2]
[400001674,1767009033259,-500.0,0.00012678,2]
[400001675,1767009033268,-500.0,0.00012678,2]
[400001676,1767009033278,-500.0,0.00012678,2]
[400001677,1767009033287,-500.0,0.00012678,2]
[400001678,1767009033296,-500.0,0.00012678,2]
[400001679,1767009033305,-500.0,0.00012678,2]
[400001680,1767009033315,-500.0,0.00012678,2]
[400001681,1767009033323,-500.0,0.00012678,2]
[400001682,1767009033331,-500.0,0.00012678,2]
[400001683,1767009033340,-500.0,0.00012678,2]
[400001684,1767009033349,-500.0,0.00012678,2]
[400001685,1767009033358,-500.0,0.00012678,2]
[400001686,1767009033367,-500.0,0.00012678,2]
[400001687,1767009033376,-500.0,0.00012678,2]
[400001688,1767009033386,-500.0,0.00012678,2]
[400001689,1767009033395,-500.0,0.00012678,2]
[400001690,1767009033404,-500.0,0.00012678,2]
[400001691,1767009033413,-500.0,0.00012678,2]
[400001692,1767009033423,-500.0,0.00012678,2]
[400001693,1767009033432,-500.0,0.00012678,2]
[400001694,1767009033441,-500.0,0.00012678,2]
[400001695,1767009033451,-500.0,0.00012678,2]
[400001696,1767009033460,-500.0,0.00012678,2]
[400001697,1767009033469,-500.0,0.00012678,2]
[400001698,1767009033479,-500.0,0.00012678,2]
[400001699,1767009033488,-500.0,0.00012678,2]
[400001700,1767009033497,-500.0,0.00012678,2]
[400001701,1767009033506,-500.0,0.00012678,2]
[400001702,1767009033515,-500.0,0.00012678,2]
[400001703,1767009033525,-599.99999999,0.00012678,2]
[400001704,1767009033534,-500.0,0.00012678,2]
[400001705,1767009033543,-500.0,0.00012678,2]
[400001706,1767009033552,-500.0,0.00012678,2]
[400001707,1767009033561,-500.0,0.00012678,2]
[400001708,1767009033571,-500.0,0.00012678,2]
[400001709,1767009033580,-500.0,0.00012678,2]
[400001710,1767009033590,-500.0,0.00012678,2]
[400001711,1767009033599,-316.04238475,0.00012678,2]
[400001712,1767009033609,-503.42768977,0.00012678,2]
[400001713,1767009033620,-500.0,0.00012678,2]
[400001714,1767009033630,-500.0,0.00012678,2]
[400001715,1767009033639,-500.0,0.00012678,2]
[400001716,1767009033648,-500.0,0.00012678,2]
[400001717,1767009033658,-241.21475372,0.00012678,2]
[400001718,1767009033667,-500.0,0.00012678,2]
[400001719,1767009033676,-241.21475372,0.00012678,2]
[400001720,1767009033686,-500.0,0.00012678,2]
[400001721,1767009033695,-158.69026474,0.00012678,2]
[400001722,1767009033706,-500.0,0.00012678,2]
[400001723,1767009033715,-241.21475372,0.00012678,2]
[400001724,1767009033724,-300.0,0.00012678,2]
[400001725,1767009033733,-500.0,0.00012678,2]
[400001726,1767009033743,-241.21475372,0.00012678,2]
[400001727,1767009033752,-500.0,0.00012678,2]
[400001728,1767009033762,-241.21475372,0.00012678,2]
[400001729,1767009033771,-500.0,0.00012678,2]
[400001730,1767009033780,-500.0,0.00012678,2]
[400001731,1767009033789,-482.42950744,0.00012678,2]
[400001732,1767009033799,-500.0,0.00012678,2]
[400001733,1767009033808,-241.21475372,0.00012678,2]
[400001734,1767009033817,-500.0,0.00012678,2]
[400001735,1767009033827,-241.21475372,0.00012678,2]
[400001736,1767009033836,-500.0,0.00012678,2]
[400001737,1767009033845,-241.21475372,0.00012678,2]
[400001738,1767009033855,-500.0,0.00012678,2]
[400001739,1767009033864,-241.21475372,0.00012678,2]
[400001740,1767009033873,-500.0,0.00012678,2]
[400001741,1767009033883,-241.21475372,0.00012678,2]
[400001742,1767009033892,-500.0,0.00012678,2]
[400001743,1767009033901,-241.21475372,0.00012678,2]
[400001744,1767009033910,-500.0,0.00012678,2]
[400001745,1767009033919,-241.21475372,0.00012678,2]
[400001746,1767009033928,-500.0,0.00012678,2]
[400001747,1767009033938,-241.21475372,0.00012678,2]
[400001748,1767009033947,-500.0,0.00012678,2]
[400001749,1767009033956,-241.21475372,0.00012678,2]
[400001750,1767009033965,-500.0,0.00012678,2]
[400001751,1767009033975,-241.21475372,0.00012678,2]
[400001752,1767009033984,-1896.9094563,0.00012679,2]
[400001753,1767009033994,-1000.0,0.00012679,2]
[400001754,1767009034003,-6500.77,0.00012868,2]
[400001755,1767009034012,-548.78,0.00012945,2]
[400001756,1767009034022,-4180.71073545,0.0001317,2]
[400001757,1767009034033,-548.78,0.00013219,2]
[400001758,1767009034042,-200.0,0.0001322,2]
[400001759,1767009034052,-500.0,0.0001322,2]
[400001760,1767009034061,-201.23401647,0.0001322,2]
[400001761,1767009034070,-6500.77,0.00013235,2]
[400001762,1767009034079,-1344.14,0.00013299,2]
[400001763,1767009034090,-548.78,0.00013493,2]
[400001764,1767009034099,-6500.77,0.00013603,2]
[400001765,1767009034108,-1852.42,0.00013636,2]
[400001766,1767009034118,-373.12730585,0.00013698,2]
[400001767,1767009034128,-422.59,0.00013699,2]
[400001768,1767009034139,-3541.9055566,0.00013748,2]
[400001769,1767009034149,-15644.3637944,0.00013748,2]
[400001770,1767009034158,-1193.59017815,0.00013761,2]
[400001771,1767009034167,-4180.71073545,0.00013761,2]
[400001772,1767009034179,-548.82198131,0.00013767,2]
[400001773,1767009034190,-150.0,0.00013773,2]
[400001774,1767009034199,-420.0,0.00013799,2]
[400001775,1767009034209,-361.0,0.00013799,2]
[400001776,1767009034219,-250.0,0.00013836,2]
[400001777,1767009034229,-300.0,0.00013836,2]
[400001778,1767009034238,-250.0,0.00013836,2]
[400001779,1767009034248,-600.0,0.00013836,2]
[400001780,1767009034259,-251.0,0.00013836,2]
[400001781,1767009034268,-80531.00234628,0.00013837,2]
[400001782,1767009034277,-250.0,0.0001391,2]
[400001783,1767009034286,-6500.77,0.00013971,2]
[400001784,1767009034295,-1000.0,0.00014154,2]
[400001785,1767009034305,-1193.59017815,0.00014353,2]
[400001786,1767009034314,-4180.71073545,0.00014353,2]
[400001787,1767009034323,-949.25,0.00014746,2]
[400001788,1767009034332,-10384.64,0.00014808,2]
[400001789,1767009034342,-493.84292283,0.00014838,2]
[400001790,1767009034351,-3557.62,0.00014916,2]
[400001791,1767009034360,-1193.59017815,0.00014944,2]
[400001792,1767009034370,-4180.71073545,0.00014944,2]
[400001793,1767009034379,-1344.14,0.00014962,2]
[400001794,1767009034387,-240.62,0.00015132,2]
[400001795,1767009034396,-587.0,0.00015139,2]
[400001796,1767009034406,-359.63,0.00015169,2]
[400001797,1767009034415,-250.0,0.00015192,2]
[400001798,1767009034424,-500.0,0.00015192,2]
[400001799,1767009034433,-250.0,0.00015192,2]
[400001800,1767009034442,-500.0,0.00015192,2]
[400001801,1767009034451,-500.0,0.00015192,2]
[400001802,1767009034460,-553.64373807,0.00015192,2]
[400001803,1767009034469,-500.0,0.00015192,2]
[400001804,1767009034478,-500.0,0.00015192,2]
[400001805,1767009034486,-500.0,0.00015192,2]
[400001806,1767009034495,-500.0,0.00015192,2]
[400001807,1767009034504,-500.0,0.00015192,2]
[400001808,1767009034513,-644.46532357,0.00015192,2]
[400001809,1767009034522,-500.0,0.00015192,2]
[400001810,1767009034531,-238.38323648,0.00015192,2]
[400001811,1767009034540,-500.0,0.00015192,2]
[400001812,1767009034549,-500.0,0.00015192,2]
[400001813,1767009034558,-500.0,0.00015192,2]
[400001814,1767009034567,-250.0,0.00015192,2]
[400001815,1767009034576,-500.0,0.00015192,2]
[400001816,1767009034586,-152.20980143,0.00015192,2]
[400001817,1767009034595,-250.0,0.00015192,2]
[400001818,1767009034604,-250.0,0.00015192,2]
[400001819,1767009034613,-250.0,0.00015192,2]
[400001820,1767009034623,-250.0,0.00015192,2]
[400001821,1767009034632,-250.0,0.00015192,2]
[400001822,1767009034641,-250.0,0.00015192,2]
[400001823,1767009034650,-250.0,0.00015192,2]
[400001824,1767009034660,-250.0,0.00015192,2]
[400001825,1767009034669,-500.0,0.00015192,2]
[400001826,1767009034678,-250.0,0.00015192,2]
[400001827,1767009034687,-500.0,0.00015192,2]
[400001828,1767009034696,-250.0,0.00015192,2]
[400001829,1767009034705,-322.6107,0.00015192,2]
[400001830,1767009034714,-250.0,0.00015192,2]
[400001831,1767009034724,-250.0,0.00015192,2]
[400001832,1767009034733,-1000.0,0.00015192,2]
[400001833,1767009034742,-1000.0,0.00015192,2]
[400001834,1767009034752,-620.0,0.00015192,2]
[400001835,1767009034761,-1000.0,0.00015192,2]
[400001836,1767009034771,-1000.0,0.00015192,2]
[400001837,1767009034780,-1000.0,0.00015192,2]
[400001838,1767009034789,-1000.0,0.00015192,2]
[400001839,1767009034799,-500.0,0.00015192,2]
[400001840,1767009034808,-872.54418285,0.00015285,2]
[400001841,1767009034818,-207.4,0.00015411,2]
[400001842,1767009034827,-3490.7293988,0.00015503,2]
[400001843,1767009034837,-790.305954,0.00015512,2]
[400001844,1767009034846,-1193.59017815,0.00015535,2]
[400001845,1767009034855,-4180.71073545,0.00015535,2]
[400001846,1767009034865,-574.12855637,0.0001574,2]
[400001847,1767009034874,-778.8870098,0.00015894,2]
[400001848,1767009034883,-176.341094,0.00015906,2]
[400001849,1767009034893,-1000.0,0.00015923,2]
[400001850,1767009034902,-1193.59017815,0.00016126,2]
[400001851,1767009034912,-4180.71073545,0.00016126,2]
[400001852,1767009034921,-274.63892272,0.00016182,2]
[400001853,1767009034932,-595.37131296,0.00016288,2]
[400001854,1767009034942,-500.0,0.00016438,2]
[400001855,1767009034951,-562.16173837,0.00016438,2]
[400001856,1767009034961,-150.0,0.00016438,2]
[400001857,1767009034971,-150.0,0.00016465,2]
[400001858,1767009034981,-200.0,0.00016493,2]
[400001859,1767009034991,-334.5472959,0.00016561,2]
[400001860,1767009035002,-642.94,0.00016561,2]
[400001861,1767009035012,-823.0,0.0001661,2]
[400001862,1767009035022,-1344.14,0.00016624,2]
[400001863,1767009035032,-4055.65623674,0.0001666,2]
[400001864,1767009035042,-565.0,0.00016662,2]
[400001865,1767009035052,-209.75213701,0.00016667,2]
[400001866,1767009035062,-166.63,0.00016712,2]
[400001867,1767009035071,-1193.59017815,0.00016718,2]
[400001868,1767009035082,-4180.71073545,0.00016718,2]
[400001869,1767009035092,-617.40005154,0.00016836,2]
[400001870,1767009035103,-293.90223746,0.000169,2]
[400001871,1767009035114,-933.16787397,0.000169,2]
[400001872,1767009035124,-1538.51793045,0.000169,2]
[400001873,1767009035135,-777.34195965,0.000169,2]
[400001874,1767009035147,-1599.64554556,0.000169,2]
[400001875,1767009035158,-179.69793141,0.000169,2]
[400001876,1767009035168,-201.36386947,0.000169,2]
[400001877,1767009035178,-221.31268556,0.000169,2]
[400001878,1767009035188,-565.0,0.00016909,2]
[400001879,1767009035197,-202.35898371,0.00016911,2]
[400001880,1767009035207,-79051.62387995,0.00016925,2]
[400001881,1767009035343,-10719.13850745,0.00016925,2]
[400001882,1767009035356,-565.0,0.00016951,2]
[400001883,1767009035365,-565.0,0.00016995,2]
[400001884,1767009035374,-207.0,0.00016998,2]
[400001885,1767009035384,-300.0,0.00016999,2]
[400001886,1767009035396,-313.99302103,0.00016999,2]
[400001887,1767009035406,-300.0,0.00016999,2]
[400001888,1767009035416,-666.0,0.00016999,2]
[400001889,1767009035427,-300.0,0.00016999,2]
[400001890,1767009035436,-2382.0,0.00017,2]
[400001891,1767009035446,-39548.63926353,0.00017,2]
[400001892,1767009035455,-5674.10185446,0.00017,2]
[400001893,1767009035466,-122435.51558763,0.00017,2]
[400001894,1767009035479,-57465.76701076,0.00017,2]
[400001895,1767009035549,500.0,0.00012577,2]
[400001896,1767009035585,415.77752347,0.00012577,2]
[400001897,1767009035630,298.18695602,0.00012577,2]
[400001898,1767009035756,542.03787885,0.00012577,2]
[400001900,1767009037994,-377.0,0.00017,2]
[400001901,1767009038153,-2783.24970907,0.00017,2]
[400001902,1767009038166,-1141.97294983,0.00017,2]
[400001911,1767009039980,-258.79652806,0.00017,2]
[400001912,1767009040035,-458.87313864,0.00017,2]
[400001913,1767009040090,-4696.43587468,0.00017,2]
[400001914,1767009040249,-876663.55616,0.00017,2]
[400001915,1767009040356,-6426.99855979,0.00017,2]
[400002010,1767009046008,-1338.05559039,0.00017,2]
[400002011,1767009046733,500.0,0.00012545,2]
[400002012,1767009061455,244.0,0.00030136,120]
[400002013,1767009068132,267.3939122,0.00012577,2]
[400002014,1767009068774,9232.6160878,0.00012578,2]
[400002015,1767009068802,10000.01,0.00012578,2]
[400002016,1767009068830,10000.01,0.00012578,2]
[400002017,1767009068858,10000.01,0.00012578,2]
[400002018,1767009068886,10000.01,0.00012578,2]
[400002019,1767009068913,10000.01,0.00012578,2]
[400002020,1767009068943,10000.01,0.00012578,2]
[400002021,1767009068969,10000.01,0.00012578,2]
[400002022,1767009068995,10000.01,0.00012578,2]
[400002023,1767009069021,10000.01,0.00012578,2]
[400002025,1767009088057,500.0,0.00012577,2]
[400002026,1767009088100,500.0,0.00012577,2]
[400002027,1767009088157,500.0,0.00012577,2]
[400002028,1767009088204,500.0,0.00012577,2]
[400002029,1767009088244,500.0,0.00012577,2]
[400002030,1767009088289,500.0,0.00012577,2]
[400002031,1767009088334,500.0,0.00012577,2]
[400002032,1767009088373,500.0,0.00012577,2]
[400002033,1767009088411,500.0,0.00012577,2]
[400002034,1767009088452,500.0,0.00012577,2]
[400002035,1767009088494,500.0,0.00012577,2]
[400002036,1767009088537,500.0,0.00012577,2]
[400002037,1767009088582,500.0,0.00012577,2]
[400002038,1767009088622,500.0,0.00012577,2]
[400002039,1767009088663,500.0,0.00012577,2]
[400002040,1767009088704,500.0,0.00012577,2]
[400002041,1767009088744,500.0,0.00012577,2]
[400002042,1767009088783,500.0,0.00012577,2]
[400002043,1767009088828,500.0,0.00012577,2]
[400002044,1767009088866,500.0,0.00012577,2]
[400002045,1767009088908,0.01,0.00012577,2]
[400002046,1767009088933,499.99,0.00012577,2]
[400002047,1767009088971,500.0,0.00012577,2]
[400002048,1767009089012,500.0,0.00012577,2]
[400002049,1767009089051,500.0,0.00012577,2]
[400002050,1767009089089,500.0,0.00012577,2]
[400002051,1767009089130,500.0,0.00012577,2]
[400002052,1767009089169,500.0,0.00012577,2]
[400002053,1767009089212,500.0,0.00012577,2]
[400002054,1767009089253,500.0,0.00012577,2]
[400002055,1767009089305,284.53379676,0.00012577,2]
[400002056,1767009093449,819.171,0.00012327,2]
[400002058,1767009113455,684.7274,0.00012571,2]
[400002059,1767009121694,300.0,0.00012577,2]
[400002060,1767009159941,2390.38897794,0.00012479,2]
[400002061,1767009166852,452.04433574,0.00012479,2]
[400002062,1767009175054,478.0768,0.00012545,2]
[400002063,1767009178418,1301.15335828,0.00012479,2]
[400002064,1767009190803,1200.0,0.00012577,2]
[400002065,1767009241580,150.0,0.00012577,2]
[400002066,1767009245939,343.90243385,0.00012577,2]
[400002067,1767009261603,500.0,0.00012577,2]
[400002068,1767009261648,500.0,0.00012577,2]
[400002069,1767009261687,500.0,0.00012577,2]